Cogmind - Beta 10.1 @@@ ROGUE MODE // 2020.10.28 @ 10:16:18 Player: Atherys Result: Destroyed by G-34 Mercenary with Small Laser Performance ------------- Evolutions (0) 0 Regions Visited (1) 200 Robots Destroyed (5) 25 Value Destroyed (111) 111 Prototype IDs (0) 0 Alien Tech Used (0) 0 Bonus (0) 0 TOTAL SCORE: 336 Bonus ------- None Cogmind --------- Core Integrity 0/250 Matter 174/300 Energy 100/100 System Corruption 2% Temperature Cool (6) Movement Core (1100) Ox21 Location -10/Materials Parts ------- > --- POWER (1) -------- (None) > --- PROPULSION (2) --- (None) > --- UTILITY (2) ------ High-capacity Storage Unit High-capacity Storage Unit > --- WEAPON (2) ------- (None) > --- INVENTORY (20) --- Light Ion Engine High-capacity Storage Unit Targeting Computer Grenade Launcher Peak State ------------ > --- POWER ------------ Light Ion Engine > --- PROPULSION ------- Wheel Wheel > --- UTILITY ---------- Small Storage Unit Large Storage Unit > --- WEAPON ----------- Medium Laser Medium Laser > --- INVENTORY -------- Grenade Launcher [Rating: 7] Favorites ----------- Power Ion Engine Engine Ion Engine Propulsion Wheel Wheel Wheel Utility High-capacity Storage Unit Storage High-capacity Storage Unit Weapon Medium Laser Energy Gun Medium Laser Ballistic Gun Light Assault Rifle Build | -11 -10 ------- Run | Scr Mat Slots Evolved . | . . Power . | . . Propulsion . | . . Utility . | . . Weapon . | . . Parts Attached 12 | 6 6 Power 2 | 1 1 Engine 2 | 1 1 Core . | . . Reactor . | . . Propulsion 2 | 2 . Treads . | . . Leg . | . . Wheel 2 | 2 . Hover . | . . Flight . | . . Utility 5 | 1 4 Device . | . . Storage 5 | 1 4 Processor . | . . Hackware . | . . Protection . | . . Artifact . | . . Weapon 3 | 2 1 Energy Gun 2 | 2 . Energy Cannon . | . . Ballistic Gun 1 | . 1 Ballistic Cannon . | . . Launcher . | . . Special Weapon . | . . Impact Weapon . | . . Slashing Weapon . | . . Piercing Weapon . | . . Special Melee Weapon . | . . Unidentified Prototypes . | . . Parts Lost 6 | . 6 Power 1 | . 1 Propulsion 2 | . 2 Utility . | . . Weapon 3 | . 3 Highest Loss Streak 5 | . 5 Average Slot Usage (%) 80 | . 80 Engine 10 | . 10 Wheel 20 | . 20 Storage 25 | . 25 Energy Gun 18 | . 18 Ballistic Gun 3 | . 3 Naked Turns . | . . Heaviest Build 73 | 11 73 Greatest Support 20 | 20 20 Greatest Overweight (x) 21 | 2 21 Average Overweight (x) 1 | . 2 Largest Inventory Capacity 20 | 6 20 Average Capacity 15 | 5 16 Most Carried 5 | . 5 Average Carried 2 | . 2 Final Capacity 20 | 6 20 Final Carried 4 | . 4 Class Distribution -------------------- 51% | Hauler-Mutant 48% | Mutant Dominant Class ---------------- Hauler-Mutant | -10/Materials Resources | -11 -10 ----------- Run | Scr Mat Matter Collected 174 | 111 63 Remotely . | . . Salvage Created 130 | . 130 Parts 8 | . 8 Haulers Intercepted . | . . Recyclers Shooed . | . . Parts Field Recycled . | . . Retrieved Matter . | . . Parts Self-Destructed . | . . Prevented . | . . Kills | -11 -10 ------- Run | Scr Mat Combat Hostiles Destroyed 5 | . 5 Guns 5 | . 5 Classes Destroyed 2 | . 2 Swarmer 3 | . 3 Grunt 2 | . 2 Best Kill Streak 2 | . 2 Combat Bots Only 2 | . 2 Max Kills in Single Turn 1 | . 1 Gunslinging . | . . Exploded . | . . Melee . | . . Uniques/NPCs Destroyed . | . . Combat | -11 -10 -------- Run | Scr Mat Damage Taken 704 | . 704 Core 256 | . 256 Absorbed by Shields . | . . Core Remaining (%) 100 | 100 . Volleys Fired 25 | . 25 Largest 2 | . 2 Hottest 100 | . 100 Shots Fired 30 | . 30 Gun 30 | . 30 Cannon . | . . Launcher . | . . Special . | . . Kinetic 10 | . 10 Thermal 20 | . 20 Explosive . | . . Electromagnetic . | . . Robot Hit Streak 6 | . 6 Robot Miss Streak 3 | . 3 Penetration Max . | . . Secondary Targets . | . . Shots Hit Robots 16 | . 16 Core Hits 8 | . 8 Critical Hits 1 | . 1 Critical Kills 1 | . 1 Critical Parts Destroyed . | . . Melee Attacks . | . . Impact . | . . Slashing . | . . Piercing . | . . Sneak Attacks . | . . Combat Hostiles . | . . Follow-up Attacks . | . . Damage Inflicted 173 | . 173 Guns 173 | . 173 Cannons . | . . Explosions . | . . Melee . | . . Ramming . | . . Kinetic 47 | . 47 Thermal 126 | . 126 Explosive . | . . Electromagnetic . | . . Impact . | . . Slashing . | . . Piercing . | . . Highest Corruption 2 | . 2 Average Corruption 2 | . 2 Corruption Purged . | . . Effects 4 | . 4 Message Errors 1 | . 1 Targeting Errors 1 | . 1 Weapon Failures 2 | . 2 Overload Shots . | . . Overflow Damage . | . . Projectiles . | . . Explosions . | . . Melee . | . . Knockbacks . | . . Impact . | . . Kinetic . | . . Secondary . | . . Self-Inflicted Damage . | . . Shots . | . . Rammed . | . . Targets Rammed . | . . Kicked . | . . Crushed . | . . Highest Temperature 259 | . 259 Average Temperature 117 | . 117 Received Heat Transfer 342 | . 342 Siege Activations . | . . Robots Corrupted . | . . Combat Hostiles . | . . Parts Fried . | . . Impact Corruptions . | . . Robots Melted . | . . Combat Hostiles . | . . Parts Melted . | . . Heat Transferred 370 | . 370 Parts Sabotaged . | . . Parts Stolen . | . . Parts Stripped . | . . Power Chain Reactions . | . . Missiles Intercepted . | . . Alert | -11 -10 ------- Run | Scr Mat Peak Influence 90 | . 90 Initial . | . . Average 38 | . 43 Maximum Alert Level . | . . Low Security (%) 100 | 100 100 Level 1 . | . . Level 2 . | . . Level 3 . | . . Level 4 . | . . Level 5 . | . . High Security . | . . Max Security . | . . Squads Dispatched 1 | . 1 Investigation . | . . Extermination . | . . Reinforcement 1 | . 1 Assault . | . . Garrison . | . . Intercept . | . . Construction Impeded . | . . Haulers Reinforced . | . . Stealth | -11 -10 --------- Run | Scr Mat Distress Signals 2 | . 2 Communications Jammed . | . . Distress Signals . | . . Times Spotted 9 | . 9 Peak Tracking Total 9 | . 9 Tactical Retreats 1 | . 1 Traps | -11 -10 ------- Run | Scr Mat Traps Triggered 1 | . 1 Indirectly . | . . Trap Hack Attempts . | . . Triggered . | . . Disarmed 3 | . 3 Reprogrammed . | . . Reused . | . . Traps Extracted . | . . Installed . | . . Triggered . | . . Machines | -11 -10 ---------- Run | Scr Mat Machines Disabled . | . . Max in Single Turn . | . . Machines Sabotaged . | . . Garrisons Compromised . | . . Overloaded Fab Kills . | . . Fab Network Shutdowns . | . . Hacking | -11 -10 --------- Run | Scr Mat Machines Accessed 3 | . 3 Terminals 3 | . 3 Fabricators . | . . Repair Stations . | . . Recycling Units . | . . Scanalyzers . | . . Garrison Access . | . . Total Hacks 15 | . 15 Successful 11 | . 11 Failed 4 | . 4 Catastrophic . | . . Database Lockouts . | . . Manual 14 | . 14 Terminals 15 | . 15 Fabricators . | . . Repair Stations . | . . Recycling Units . | . . Scanalyzers . | . . Garrison Access . | . . Terminal Hacks 1 | . 1 Disarm Traps 1 | . 1 Fabricator Hacks . | . . Repair Station Hacks . | . . Recycling Unit Hacks . | . . Scanalyzer . | . . Garrison Access Hacks . | . . Unauthorized Hacks 10 | . 10 Terminals 10 | . 10 Track 1 | . 1 Assimilate 3 | . 3 Botnet 3 | . 3 Operators 3 | . 3 Fabricators . | . . Repair Stations . | . . Recycling Units . | . . Scanalyzers . | . . Garrison Access . | . . Data Cores Recovered . | . . Used . | . . Hacking Detections 2 | . 2 Full Trace Events . | . . Feedback Events . | . . Feedback Blocked . | . . Robot Schematics Acquired . | . . Robots Built . | . . Matter . | . . Time . | . . Total Robot Build Rating . | . . Part Schematics Acquired . | . . Parts Built . | . . Matter . | . . Time . | . . Total Part Build Rating . | . . Parts Repaired . | . . Time . | . . Parts Recycled . | . . Recycled Matter . | . . Retrieved Matter . | . . Retrieved Components . | . . Parts Scanalyzed . | . . Part Schematics Acquired . | . . Parts Damaged . | . . Bothacking | -11 -10 ------------ Run | Scr Mat Used RIF Installer . | . . Robots Hacked . | . . Non-combat . | . . Combat . | . . Robot Hacks Applied . | . . Relay Couplers Released . | . . Robots Rewired . | . . Allies Hacked . | . . Hacks Repelled . | . . Allies | -11 -10 -------- Run | Scr Mat Total Allies . | . . Largest Group . | . . Highest-Rated Group . | . . Highest-Rated Ally . | . . Total Orders . | . . Ally Attacks . | . . Total Damage . | . . Kills . | . . Allies Corrupted . | . . Allies Melted . | . . Intel | -11 -10 ------- Run | Scr Mat Robot Analysis Total . | . . Derelict Logs Recovered . | . . Drone Launches . | . . Drone Recoveries . | . . Exploration | -11 -10 ------------- Run | Scr Mat Turns Passed 346 | 37 309 Spaces Moved 221 | 33 188 Core 17 | 11 6 Treads . | . . Legs . | . . Wheels 204 | 22 182 Hover . | . . Flight . | . . Fastest Speed 50 | 50 80 Average Speed 121 | 85 127 Slowest Speed 1100 | 150 1100 Overloaded Moves . | . . Propulsion Burnouts . | . . Robots Hopped . | . . Cave-ins Triggered . | . . Exploration Rate (%) 20 | 3 37 Regions Visited 1 Branch Regions . Pre-discovered Areas . | . . Known Exits Taken . | . . Unknown Exits Taken 1 | 1 . Scrap Searched . | . . Spaces Dug . | . . Terrain Destroyed . | . . Melee . | . . Projectile . | . . AOE . | . . Terrain Rammed . | . . Walls Destroyed . | . . Machines Disabled . | . . Actions | -11 -10 --------- Run | Scr Mat Total 270 | 38 232 Wait 7 | . 7 Move 220 | 32 188 Hop . | . . Pick Up 3 | . 3 Fast Attach 8 | 6 2 Attach . | . . Detach . | . . Swap 4 | . 4 Drop 3 | . 3 Fire 25 | . 25 Melee . | . . Ram . | . . Kick . | . . Crush . | . . Escape Stasis . | . . Rewire . | . . Trap . | . . Miscellaneous . | . . Route ------- -11/Scrapyard -10/Materials (discovered 1 exit: [*Min]) History --------- Turn | Location | Event 2 | -11/Scrapyard | Met Revision 17 26 | -11/Scrapyard | Discovered new exit (range 15) 38 | -11/Scrapyard | Entered Materials 146 | -10/Materials | Discovered new exit (range 6) 291 | -10/Materials | Core integrity fell below 50% 307 | -10/Materials | Lost 5 parts (1p2n2w) 339 | -10/Materials | Core integrity fell below 20% 347 | -10/Materials | Destroyed by G-34 Mercenary with Small Laser Last Messages --------------- 00233_ Med. Laser destroyed. 00239_ R-06 Scavenger collects Lgt. Ion Engine. 00243_ Wheel destroyed. 00247_ Med. Laser destroyed. 00250_ Acquired Lgt. Assault Rifle. 00254_ G-47 Trooper suffers critical hit. 00254_ G-47 Trooper destroyed. 00260_ Acquired 49 matter. 00263_ Acquired 14 matter. 00270_ Wheel destroyed. 00273_ System corrupted: Lgt. Assault Rifle jammed. 00276_ Ion Engine destroyed. 00290_ K-01 Serf cleans the Material Compactor. 00293_ G-34 Mercenary destroyed. 00294_ K-01 Serf collects debris. 00303_ R-06 Scavenger collects Aluminum Leg. 00304_ W-16 Scout sends out distress signal. 00308_ System corrupted: Lgt. Assault Rifle targeting data glitched. 00314_ R-06 Scavenger collects Ion Engine. 00330_ Lgt. Assault Rifle destroyed. Map ----- +----------------------------------------------------+ | ###### # #????????????????# #????? | | ??#### # #??????########???# #?????? | | ?##!! # """ """ #??????# #????# ######## | | ?#! # """ """ #??????# ###### # # | | ?# # """ """ #??????# """ + # """ !# | | ?#! #############????# """ # # """ # | | ?#! ####### #????# """ #"" # """ # | | ?##!! t #????# #"Y # # | | ??#### #????#####+##"" # """ # | | ?????# k######## # """ # | | ?????##+######## + """ # | | ???????????????## # # | | ????????????????# u ####### # """ # | | ????????????????#u!! ""# # # """ !# | | ???????????????##!! t T"# != + # """ # | | ???????????????#T!! ""# =!! # """ + # | | ???????????????## # = # """ ######## | | ?????????????r u ####### """ #??????? | | ?????????????###########k ####### #??????? | | ???????????????????????# ! +??????? | | ???????????????????????# #??????? | | ???????????????????????+ ![ #??????? | | ???????????????k???????# ![ #??????? | | ???????????????????????# a % #??????? | | ???????????????????????# % #???? | | ????????????????????#####@#########[ #???? | | ????????????????????# #???# #???? | | ????????????????????# !#???# #???? | | ????????????????????# """ g #???# #???? | | ????????????????????# """""g #???? #???? | | ????????????????????# """"" +% ? #???? | | ??????????????????? + """"" ##### ##????? | | ??????????????????### """ #???? #?????? | | ????????????????????# #????? +?????? | | ????????????????????##?########????? ???????????? | | ?????????????????????????????????????????????????? | | ?????????????????????????????????????????????????? | | ?????????????????????????????????????????????????? | | ?????????????????????????????????????????????????? | | ?????????????????????????????????????????????????? | | ?????????????????????????????????????????????????? | | ?????????????????????????????????????????????????? | | ??????????????????????????????????o??????????????? | | ?????????????????????????????????????????????????? | | ?????????????????????????????????????????????????? | | ?????????????????????????????????????????????????? | | ?????????????????????????????????????????????????? | | ?????????????????????????????????????????????????? | | ?????????????????????????????????????????????????? | | ?????????????????????????????????????????????????? | +----------------------------------------------------+ Best States ------------- Heat Dissipation 25 Energy Generation 10 Energy Capacity 250 Matter Stores 174 Matter Capacity 300 Sight Range 16 Terrain Scan Density 10 Evasion (%) 44 Item Schematics ----------------- None Robot Schematics ------------------ None Fabricated ------------ Nothing Alien Tech Used ----------------- None Achievements -------------- None Challenges ------------ None Game ------ Seed AutogunAntimissileScrap Manual? 0 Play Time 00:07:03 Cumulative 17.7 hours Start 2020.10.28 @ 10:08:32 End 2020.10.28 @ 10:16:18 Sessions 1 Manual Loads 0 Difficulty Rogue Special Mode None Game No. 32 Rogue 32 Adventurer 0 Explorer 0 Win Type - Total 0 Types 0/0/0/0/0/0/0/0/0 Lore% 19 Gallery% 21 Achievement% 19 Wizard Run 0 Options --------- ASCII 0 Keyboard 0 Movement Mouse Keybinds 0 Fullscreen 2 Font 24/Smallcaps Map View 76x50 Tactical HUD 1 Map Filters NONE Filters NONE Steam X RUN: f4b26a69-3be6-4982-a937-25df5d1500d6